fUST/lending_fUST_20250219
["ID","MTS","AMOUNT","RATE_DAILY","PERIOD"]
[353637282,1739975445600,-1193.27,0.00014931,2]
[353637283,1739975445610,-14456.69,0.00014931,2]
[353637284,1739975445619,-500.0,0.00014931,2]
[353637285,1739975445627,-176.90500485,0.00014932,2]
[353637286,1739975445637,-6406.91950664,0.00015,3]
[353637287,1739975445646,-200.2255343,0.00015,2]
[353637288,1739975445655,-3646.4315377,0.00015,2]
[353637289,1739975445665,-500.0,0.00015013,2]
[353637290,1739975445674,-1578.24,0.00015013,2]
[353637291,1739975445683,-6007.05,0.00015013,2]
[353637292,1739975445779,-500.0,0.00015013,2]
[353637293,1739975445789,-1009.39,0.00015013,2]
[353637294,1739975445799,-1258.32,0.00015013,2]
[353637295,1739975445809,-1287.75,0.00015013,2]
[353637296,1739975445819,-3718.99,0.00015013,2]
[353637297,1739975445829,-530.93,0.00015013,2]
[353637298,1739975445839,-1592.32,0.00015013,2]
[353637299,1739975445848,-904.54,0.00015013,2]
[353637300,1739975445857,-5802.21,0.00015013,2]
[353637301,1739975445867,-1193.27,0.00015013,2]
[353637302,1739975445876,-14456.69,0.00015013,2]
[353637303,1739975445886,-500.0,0.00015013,2]
[353637304,1739975445896,-498.60686308,0.00015021,2]
[353637305,1739975445906,-1000.0,0.00015021,2]
[353637306,1739975445916,-543.64784145,0.00015055,2]
[353637307,1739975445926,-7438.69753278,0.0001507,2]
[353637308,1739975445935,-500.0,0.00015095,2]
[353637309,1739975445945,-1578.24,0.00015095,2]
[353637310,1739975445954,-6007.05,0.00015095,2]
[353637311,1739975445964,-500.0,0.00015095,2]
[353637312,1739975445975,-1009.39,0.00015095,2]
[353637313,1739975445985,-1258.32,0.00015095,2]
[353637314,1739975445994,-1287.75,0.00015095,2]
[353637315,1739975446004,-3718.99,0.00015095,2]
[353637316,1739975446014,-530.93,0.00015095,2]
[353637318,1739975446024,-1592.32,0.00015095,2]
[353637319,1739975446034,-904.54,0.00015095,2]
[353637320,1739975446043,-5802.21,0.00015095,2]
[353637321,1739975446053,-1193.27,0.00015095,2]
[353637322,1739975446063,-14456.69,0.00015095,2]
[353637323,1739975446072,-500.0,0.00015095,2]
[353637324,1739975446082,-500.0,0.00015178,2]
[353637325,1739975446091,-1578.24,0.00015178,2]
[353637326,1739975446101,-6007.05,0.00015178,2]
[353637327,1739975446110,-568.31,0.00015178,2]
[353637328,1739975446120,-1009.39,0.00015178,2]
[353637329,1739975446132,-1258.32,0.00015178,2]
[353637330,1739975446142,-1287.75,0.00015178,2]
[353637331,1739975446151,-3718.99,0.00015178,2]
[353637332,1739975446161,-530.93,0.00015178,2]
[353637334,1739975446171,-1592.32,0.00015178,2]
[353637335,1739975446182,-904.54,0.00015178,2]
[353637336,1739975446194,-5802.21,0.00015178,2]
[353637337,1739975446205,-1193.27,0.00015178,2]
[353637338,1739975446214,-14456.69,0.00015178,2]
[353637339,1739975446227,-500.0,0.00015178,2]
[353637340,1739975446236,-151.0,0.000152,2]
[353637341,1739975446246,-500.0,0.0001526,2]
[353637342,1739975446256,-1578.24,0.0001526,2]
[353637343,1739975446267,-6007.05,0.0001526,2]
[353637344,1739975446277,-1009.39,0.0001526,2]
[353637345,1739975446288,-1258.32,0.0001526,2]
[353637346,1739975446297,-1287.75,0.0001526,2]
[353637347,1739975446308,-3718.99,0.0001526,2]
[353637348,1739975446318,-530.93,0.0001526,2]
[353637349,1739975446328,-1592.32,0.0001526,2]
[353637350,1739975446338,-904.54,0.0001526,2]
[353637351,1739975446347,-5802.21,0.0001526,2]
[353637352,1739975446356,-1193.27,0.0001526,2]
[353637353,1739975446365,-14456.69,0.0001526,2]
[353637354,1739975446376,-154.6337486,0.0001526,2]
[353637355,1739975446385,-153.0,0.0001526,2]
[353637356,1739975446395,-153.0,0.0001526,2]
[353637357,1739975446405,-153.0,0.0001526,2]
[353637358,1739975446415,-153.0,0.0001526,2]
[353637359,1739975446424,-153.0,0.0001526,2]
[353637360,1739975446434,-629.13249645,0.00015342,2]
[353637361,1739975446443,-459.56,0.00015342,2]
[353637362,1739975446453,-1578.24,0.00015342,2]
[353637363,1739975446463,-6007.05,0.00015342,2]
[353637364,1739975446474,-1009.39,0.00015342,2]
[353637365,1739975446484,-1258.32,0.00015342,2]
[353637366,1739975446494,-1287.75,0.00015342,2]
[353637367,1739975446504,-3718.99,0.00015342,2]
[353637368,1739975446513,-530.93,0.00015342,2]
[353637369,1739975446523,-1592.32,0.00015342,2]
[353637370,1739975446533,-904.54,0.00015342,2]
[353637371,1739975446542,-5802.21,0.00015342,2]
[353637372,1739975446552,-1193.27,0.00015342,2]
[353637373,1739975446562,-14456.69,0.00015342,2]
[353637374,1739975446572,-500.0,0.00015421,2]
[353637375,1739975446581,-1000.0,0.00015421,2]
[353637376,1739975446592,-345.42438499,0.00015421,2]
[353637377,1739975446605,-1000.0,0.00015421,2]
[353637378,1739975446618,-1000.0,0.00015421,2]
[353637379,1739975446631,-1000.0,0.00015421,2]
[353637380,1739975446646,-1072.78652871,0.00015421,2]
[353637381,1739975446656,-522.21733561,0.00015421,2]
[353637382,1739975446666,-1000.0,0.00015421,2]
[353637383,1739975446677,-331.98758965,0.00015421,2]
[353637384,1739975446687,-1578.24,0.00015424,2]
[353637386,1739975446696,-6007.05,0.00015424,2]
[353637387,1739975446706,-1009.39,0.00015424,2]
[353637388,1739975446715,-1258.32,0.00015424,2]
[353637389,1739975446727,-1287.75,0.00015424,2]
[353637390,1739975446736,-3718.99,0.00015424,2]
[353637391,1739975446746,-11.35364707,0.00015424,2]
[353637392,1739975446846,-519.57635293,0.00015424,2]
[353637393,1739975446857,-829.9812518,0.00015424,2]
[353637394,1739975446869,-762.3387482,0.00015424,2]
[353637395,1739975446879,-904.54,0.00015424,2]
[353637396,1739975446888,-5802.21,0.00015424,2]
[353637397,1739975446898,-1193.27,0.00015424,2]
[353637398,1739975446908,-252.8326626,0.00015424,2]
[353637399,1739975446919,-586.48494287,0.00015424,2]
[353637400,1739975447050,-500.0,0.00013698,2]
[353637401,1739975447059,-500.0,0.00013698,2]
[353637402,1739975447070,-500.0,0.0001378,2]
[353637403,1739975447084,-500.0,0.0001378,2]
[353637404,1739975447094,-500.0,0.00013863,2]
[353637405,1739975447103,-500.0,0.00013863,2]
[353637406,1739975447114,-5076.19562044,0.00015424,2]
[353637407,1739975447126,-8541.17677409,0.00015424,2]
[353637408,1739975447136,-1500.0,0.00015471,2]
[353637409,1739975447146,-465.44577605,0.00015499,2]
[353637410,1739975447158,-151.0,0.000155,2]
[353637411,1739975447168,-1578.24,0.00015506,2]
[353637412,1739975447178,-6007.05,0.00015506,2]
[353637413,1739975447191,-1009.39,0.00015506,2]
[353637414,1739975447202,-1258.32,0.00015506,2]
[353637415,1739975447212,-1287.75,0.00015506,2]
[353637416,1739975447223,-3718.99,0.00015506,2]
[353637417,1739975447234,-530.93,0.00015506,2]
[353637418,1739975447244,-1592.32,0.00015506,2]
[353637419,1739975447255,-904.54,0.00015506,2]
[353637420,1739975447265,-5802.21,0.00015506,2]
[353637421,1739975447275,-1193.27,0.00015506,2]
[353637422,1739975447285,-14456.69,0.00015506,2]
[353637423,1739975447295,-1500.0,0.00015515,2]
[353637424,1739975447305,-600.0,0.00015534,2]
[353637425,1739975447315,-543.64784145,0.00015577,2]
[353637426,1739975447325,-1578.28982466,0.00015589,2]
[353637427,1739975447335,-6007.11943156,0.00015589,2]
[353637428,1739975447346,-1009.49554588,0.00015589,2]
[353637429,1739975447357,-1258.47683911,0.00015589,2]
[353637430,1739975447367,-1287.76127131,0.00015589,2]
[353637431,1739975447378,-3719.04155046,0.00015589,2]
[353637432,1739975447388,-531.14148451,0.00015589,2]
[353637433,1739975447397,-1592.39035416,0.00015589,2]
[353637434,1739975447407,-904.54381126,0.00015589,2]
[353637435,1739975447417,-5802.43348654,0.00015589,2]
[353637436,1739975447427,-1193.32093691,0.00015589,2]
[353637437,1739975447436,-14456.8421,0.00015589,2]
[353637438,1739975447446,-176.90500485,0.00015674,2]
[353637439,1739975447456,-501.88,0.000157,7]
[353637440,1739975447466,-187.778905,0.00015775,2]
[353637441,1739975447477,-151.0,0.000158,2]
[353637442,1739975447487,-587.0,0.00015841,2]
[353637443,1739975447497,-376.01183395,0.00016022,2]
[353637444,1739975447507,-355.163177,0.00016082,2]
[353637445,1739975447517,-355.163177,0.00016082,2]
[353637446,1739975447527,-355.163177,0.00016082,2]
[353637447,1739975447537,-355.163177,0.00016082,2]
[353637448,1739975447547,-543.64784145,0.000161,2]
[353637449,1739975447558,-473.20662482,0.00016109,2]
[353637450,1739975447567,-499.0,0.00016164,2]
[353637451,1739975447578,-1015.84456147,0.00016166,2]
[353637452,1739975447588,-500.0,0.00016173,2]
[353637453,1739975447598,-605.65031961,0.00016173,2]
[353637454,1739975447609,-500.0,0.00016173,2]
[353637455,1739975447619,-500.0,0.00016173,2]
[353637456,1739975447629,-151.0,0.000162,2]
[353637457,1739975447639,-151.0,0.000162,2]
[353637458,1739975447648,-59843.77513849,0.000162,2]
[353637459,1739975447658,-59843.77513849,0.000162,2]
[353637460,1739975447668,-465.0222888,0.00016274,2]
[353637461,1739975447677,-59843.77513849,0.00016275,2]
[353637462,1739975447687,-151.0,0.000163,2]
[353637463,1739975447697,-557.1188801,0.00016356,2]
[353637464,1739975447707,-153.0,0.00016356,2]
[353637465,1739975447717,-254.6114708,0.00016356,2]
[353637466,1739975447728,-156.028151,0.00016356,2]
[353637467,1739975447737,-154.7376905,0.00016356,2]
[353637468,1739975447746,-153.0,0.00016356,2]
[353637469,1739975447756,-557.1188801,0.00016356,2]
[353637470,1739975447766,-153.0,0.00016356,2]
[353637471,1739975447777,-154.7376905,0.00016356,2]
[353637472,1739975447788,-153.0,0.00016356,2]
[353637473,1739975447798,-153.0,0.00016356,2]
[353637474,1739975447808,-154.7376905,0.00016356,2]
[353637475,1739975447818,-176.90500485,0.00016416,2]
[353637476,1739975447828,-500.0,0.00016421,2]
[353637477,1739975447838,-1500.0,0.00016422,2]
[353637478,1739975447848,-1000.95075043,0.00016422,2]
[353637479,1739975447859,-501.30101814,0.00016422,2]
[353637480,1739975447869,-1500.0,0.00016422,2]
[353637481,1739975447880,-1000.0,0.00016438,2]
[353637482,1739975447889,-1000.0,0.00016438,2]
[353637483,1739975447900,-397.53754396,0.00016438,2]
[353637484,1739975447911,-151.0,0.000165,2]
[353637485,1739975447922,-151.0,0.000165,2]
[353637486,1739975447932,-10052.38462478,0.000165,2]
[353637487,1739975447943,-500.0,0.00016521,2]
[353637488,1739975447954,-151.0,0.000166,2]
[353637489,1739975448071,-10082.9946299,0.000166,2]
[353637490,1739975448082,-500.0,0.00016621,2]
[353637491,1739975448093,-151.0,0.000167,2]
[353637492,1739975448105,-1000.00643651,0.00016721,2]
[353637493,1739975448116,-1000.3801526,0.00016721,2]
[353637494,1739975448134,-500.83239552,0.00016721,2]
[353637495,1739975448145,-500.0,0.00016721,2]
[353637496,1739975448156,-2000.0,0.00016768,2]
[353637497,1739975448167,-604.0,0.00016769,2]
[353637498,1739975448179,-604.0,0.00016769,2]
[353637499,1739975448193,-604.0,0.00016769,2]
[353637500,1739975448204,-604.0,0.00016769,2]
[353637501,1739975448215,-604.0,0.00016769,2]
[353637502,1739975448227,-604.0,0.00016769,2]
[353637503,1739975448238,-604.0,0.00016769,2]
[353637504,1739975448249,-604.0,0.00016769,2]
[353637505,1739975448260,-604.0,0.00016769,2]
[353637506,1739975448272,-604.0,0.00016769,2]
[353637507,1739975448285,-604.0,0.00016769,2]
[353637508,1739975448298,-604.0,0.00016769,2]
[353637509,1739975448309,-604.0,0.00016769,2]
[353637510,1739975448320,-696.0,0.0001677,2]
[353637511,1739975448331,-696.0,0.0001677,2]
[353637512,1739975448342,-696.0,0.0001677,2]
[353637513,1739975448355,-696.0,0.0001677,2]
[353637514,1739975448366,-696.0,0.0001677,2]
[353637515,1739975448378,-696.0,0.0001677,2]
[353637516,1739975448389,-696.0,0.0001677,2]
[353637517,1739975448401,-696.0,0.0001677,2]
[353637518,1739975448412,-696.0,0.0001677,2]
[353637519,1739975448422,-696.0,0.0001677,2]
[353637520,1739975448433,-696.0,0.0001677,2]
[353637521,1739975448445,-696.0,0.0001677,2]
[353637522,1739975448458,-696.0,0.0001677,2]
[353637523,1739975448470,-696.0,0.0001677,2]
[353637524,1739975448483,-604.0,0.00016771,2]
[353637525,1739975448498,-604.0,0.00016771,2]
[353637526,1739975448508,-604.0,0.00016771,2]
[353637527,1739975448519,-604.0,0.00016771,2]
[353637528,1739975448529,-604.0,0.00016771,2]
[353637529,1739975448540,-604.0,0.00016771,2]
[353637530,1739975448551,-604.0,0.00016771,2]
[353637531,1739975448562,-604.0,0.00016771,2]
[353637532,1739975448573,-604.0,0.00016771,2]
[353637533,1739975448583,-604.0,0.00016771,2]
[353637534,1739975448593,-604.0,0.00016771,2]
[353637535,1739975448603,-604.0,0.00016771,2]
[353637536,1739975448614,-604.0,0.00016771,2]
[353637537,1739975448624,-604.0,0.00016771,2]
[353637538,1739975448635,-696.0,0.00016772,2]
[353637539,1739975448645,-696.0,0.00016772,2]
[353637540,1739975448656,-696.0,0.00016772,2]
[353637541,1739975448666,-696.0,0.00016772,2]
[353637542,1739975448676,-696.0,0.00016772,2]
[353637543,1739975448686,-696.0,0.00016772,2]
[353637544,1739975448696,-696.0,0.00016772,2]
[353637545,1739975448706,-696.0,0.00016772,2]
[353637546,1739975448717,-696.0,0.00016772,2]
[353637547,1739975448729,-696.0,0.00016772,2]
[353637548,1739975448739,-696.0,0.00016772,2]
[353637549,1739975448750,-696.0,0.00016772,2]
[353637550,1739975448760,-696.0,0.00016772,2]
[353637551,1739975448772,-696.0,0.00016772,2]
[353637552,1739975448782,-500.0,0.00016773,2]
[353637553,1739975448792,-604.0,0.00016773,2]
[353637554,1739975448803,-604.0,0.00016773,2]
[353637555,1739975448813,-604.0,0.00016773,2]
[353637556,1739975448823,-604.0,0.00016773,2]
[353637557,1739975448835,-604.0,0.00016773,2]
[353637558,1739975448846,-604.0,0.00016773,2]
[353637559,1739975448857,-604.0,0.00016773,2]
[353637560,1739975448867,-604.0,0.00016773,2]
[353637561,1739975448878,-604.0,0.00016773,2]
[353637562,1739975448889,-604.0,0.00016773,2]
[353637563,1739975448899,-604.0,0.00016773,2]
[353637564,1739975448910,-604.0,0.00016773,2]
[353637565,1739975448920,-696.0,0.00016773,2]
[353637566,1739975448930,-696.0,0.00016773,2]
[353637567,1739975448940,-696.0,0.00016773,2]
[353637568,1739975448950,-696.0,0.00016773,2]
[353637569,1739975448961,-696.0,0.00016773,2]
[353637570,1739975448971,-696.0,0.00016773,2]
[353637571,1739975448983,-696.0,0.00016773,2]
[353637572,1739975448994,-696.0,0.00016773,2]
[353637573,1739975449005,-696.0,0.00016773,2]
[353637574,1739975449015,-696.0,0.00016773,2]
[353637575,1739975449025,-696.0,0.00016773,2]
[353637576,1739975449036,-696.0,0.00016773,2]
[353637577,1739975449046,-696.0,0.00016773,2]
[353637578,1739975449057,-604.0,0.00016775,2]
[353637579,1739975449068,-604.0,0.00016775,2]
[353637580,1739975449078,-604.0,0.00016775,2]
[353637581,1739975449088,-604.0,0.00016775,2]
[353637582,1739975449099,-604.0,0.00016775,2]
[353637583,1739975449110,-604.0,0.00016775,2]
[353637584,1739975449121,-604.0,0.00016775,2]
[353637585,1739975449132,-604.0,0.00016775,2]
[353637586,1739975449143,-604.0,0.00016775,2]
[353637587,1739975449154,-604.0,0.00016775,2]
[353637588,1739975449165,-604.0,0.00016775,2]
[353637589,1739975449175,-604.0,0.00016775,2]
[353637590,1739975449187,-696.0,0.00016775,2]
[353637591,1739975449199,-696.0,0.00016775,2]
[353637592,1739975449209,-696.0,0.00016775,2]
[353637593,1739975449220,-696.0,0.00016775,2]
[353637594,1739975449233,-696.0,0.00016775,2]
[353637595,1739975449243,-696.0,0.00016775,2]
[353637596,1739975449254,-696.0,0.00016775,2]
[353637597,1739975449266,-696.0,0.00016775,2]
[353637598,1739975449279,-696.0,0.00016775,2]
[353637599,1739975449290,-696.0,0.00016775,2]
[353637600,1739975449300,-696.0,0.00016775,2]
[353637601,1739975449311,-696.0,0.00016775,2]
[353637602,1739975449321,-151.0,0.000168,2]
[353637603,1739975449332,-2000.0,0.00016812,2]
[353637604,1739975449342,-500.0,0.00016821,2]
[353637605,1739975449352,-498.57453263,0.0001687,2]
[353637606,1739975449364,-151.0,0.000169,2]
[353637607,1739975449375,-600.0,0.00016904,2]
[353637608,1739975449386,-500.0,0.00016921,2]
[353637609,1739975449397,-6393.0,0.00017,2]
[353637610,1739975449407,-151.0,0.00017,2]
[353637611,1739975449418,-500.0,0.00017,7]
[353637612,1739975449429,-500.0,0.00017,7]
[353637613,1739975449440,-500.0,0.00017,7]
[353637614,1739975449451,-500.0,0.00017,7]
[353637615,1739975449462,-500.0,0.00017,7]
[353637616,1739975449472,-500.0,0.00017,7]
[353637617,1739975449485,-500.0,0.00017,7]
[353637618,1739975449496,-500.0,0.00017,7]
[353637619,1739975449507,-500.0,0.00017,7]
[353637620,1739975449518,-566.69,0.00017,7]
[353637621,1739975449529,-1319.90364068,0.00017,2]
[353637622,1739975449539,-363.02939924,0.00017,2]
[353637623,1739975449550,-500.0,0.00017021,2]
[353637624,1739975449560,-355.163177,0.00017041,2]
[353637625,1739975449571,-355.163177,0.00017041,2]
[353637626,1739975449582,-355.163177,0.00017041,2]
[353637627,1739975449592,-355.163177,0.00017041,2]
[353637628,1739975449603,-654.1585268,0.00017041,2]
[353637629,1739975449612,-500.0,0.00017121,2]
[353637630,1739975449623,-176.90500485,0.00017158,2]
[353637631,1739975449633,-557.1188801,0.00017178,2]
[353637632,1739975449642,-557.1188801,0.00017178,2]
[353637633,1739975449652,-154.7376905,0.00017178,2]
[353637634,1739975449663,-154.7376905,0.00017178,2]
[353637635,1739975449674,-153.0,0.00017178,2]
[353637636,1739975449684,-153.0,0.00017178,2]
[353637637,1739975449694,-557.1188801,0.00017178,2]
[353637638,1739975449704,-154.7376905,0.00017178,2]
[353637639,1739975449714,-154.7376905,0.00017178,2]
[353637640,1739975449724,-153.0,0.00017178,2]
[353637641,1739975449735,-153.0,0.00017178,2]
[353637642,1739975449744,-557.1188801,0.00017178,2]
[353637643,1739975449754,-154.7376905,0.00017178,2]
[353637644,1739975449765,-557.1188801,0.00017178,2]
[353637645,1739975449775,-153.0,0.00017178,2]
[353637646,1739975449785,-557.1188801,0.00017178,2]
[353637647,1739975449795,-154.7376905,0.00017178,2]
[353637648,1739975449805,-557.1188801,0.00017178,2]
[353637649,1739975449814,-154.7376905,0.00017178,2]
[353637650,1739975449824,-153.0,0.00017178,2]
[353637651,1739975449834,-154.7376905,0.00017178,2]
[353637652,1739975449843,-557.1188801,0.00017178,2]
[353637653,1739975449853,-557.1188801,0.00017178,2]
[353637654,1739975449863,-153.0,0.00017178,2]
[353637655,1739975449873,-557.1188801,0.00017178,2]
[353637656,1739975449883,-557.1188801,0.00017178,2]
[353637657,1739975449892,-153.0,0.00017178,2]
[353637658,1739975449903,-557.1188801,0.00017178,2]
[353637659,1739975449912,-557.1188801,0.00017178,2]
[353637660,1739975449922,-557.1188801,0.00017178,2]
[353637661,1739975449932,-557.1188801,0.00017178,2]
[353637662,1739975449941,-557.1188801,0.00017178,2]
[353637663,1739975449951,-557.1188801,0.00017178,2]
[353637664,1739975449961,-557.1188801,0.00017178,2]
[353637665,1739975449971,-557.1188801,0.00017178,2]
[353637666,1739975449981,-557.1188801,0.00017178,2]
[353637667,1739975449991,-557.1188801,0.00017178,2]
[353637668,1739975450000,-557.1188801,0.00017178,2]
[353637669,1739975450009,-557.1188801,0.00017178,2]
[353637670,1739975450019,-1000.0,0.000172,2]
[353637671,1739975450028,-151.0,0.000172,2]
[353637672,1739975450038,-500.0,0.00017221,2]
[353637673,1739975450048,-161.984055,0.00017248,2]
[353637674,1739975450058,-161.984055,0.0001728,15]
[353637675,1739975450067,-10000.0,0.000173,2]
[353637676,1739975450077,-151.0,0.000173,2]
[353637677,1739975450087,-500.0,0.00017321,2]
[353637678,1739975450096,-10000.0,0.0001734,5]
[353637679,1739975450107,-13275.53870192,0.0001735,2]
[353637680,1739975450117,-823.0,0.00017369,2]
[353637681,1739975450127,-1000.0,0.000174,4]
[353637682,1739975450136,-10000.0,0.000174,2]
[353637683,1739975450146,-500.0,0.00017421,2]
[353637684,1739975450156,-1006.50607971,0.000175,4]
[353637685,1739975450166,-3000.0,0.000175,2]
[353637686,1739975450176,-151.0,0.000175,2]
[353637687,1739975450190,-3000.0,0.000175,2]
[353637688,1739975450199,-59843.77513849,0.000175,2]
[353637689,1739975450210,-1015.84456147,0.000175,2]
[353637690,1739975450218,-13498.23162692,0.000175,2]
[353637691,1739975450228,-500.0,0.000175,2]
[353637692,1739975450239,-150.0,0.00017513,2]
[353637693,1739975450248,-538.0,0.00017513,2]
[353637694,1739975450258,-1971.0,0.00017513,2]
[353637695,1739975450269,-2307.589,0.00017513,2]
[353637696,1739975450279,-500.0,0.00017521,2]
[353637697,1739975450288,-154.65899617,0.00017534,4]
[353637698,1739975450298,-710.326354,0.00017589,2]
[353637699,1739975450308,-377.0080862,0.00017589,2]
[353637700,1739975450319,-309.2674972,0.00017589,2]
[353637701,1739975450329,-160.0,0.00017599,2]
[353637702,1739975450339,-160.0,0.00017599,2]
[353637703,1739975450434,-104861.33104061,0.000176,5]
[353637704,1739975450444,-28755.13622942,0.000176,5]
[353637705,1739975450454,-938976.14085366,0.000176,5]
[353637706,1739975450463,-1773394.61613842,0.000176,5]
[353637707,1739975450518,-500.0,0.00013945,2]
[353637708,1739975450527,-500.0,0.00013945,2]
[353637709,1739975450537,-281.79075963,0.00014027,2]
[353637710,1739975450546,-355.163177,0.00016082,2]
[353637711,1739975450555,-28874.56186836,0.000176,5]
[353637712,1739975450566,-1020.99,0.000176,5]
[353637713,1739975450578,-61137.16668932,0.000176,5]
[353637714,1739975450678,-500.0,0.00013698,2]
[353637715,1739975450688,-500.0,0.0001378,2]
[353637716,1739975450698,-500.0,0.00014191,2]
[353637717,1739975450707,-154.7376905,0.00016356,2]
[353637718,1739975450716,-557.1188801,0.00017178,2]
[353637719,1739975450726,-2552.53430417,0.000176,5]
[353637720,1739975450739,-25040.59833973,0.000176,5]
[353637721,1739975450809,-8569.47834581,0.000176,5]
[353637722,1739975450821,-53390.68900907,0.000176,5]
[353637723,1739975450832,-395.22327585,0.000176,5]
[353637724,1739975450844,-644623.56202927,0.000176,5]
[353637725,1739975450855,-151.0,0.000176,2]
[353637726,1739975450864,-255.452223,0.000176,2]
[353637727,1739975450874,-255.452223,0.000176,2]
[353637728,1739975450884,-500.0,0.000176,2]
[353637729,1739975450894,-500.0,0.000176,2]
[353637730,1739975450903,-8083.11886401,0.000176,5]
[353637731,1739975450914,-2000.0,0.000176,2]
[353637732,1739975450923,-151.0,0.000176,2]
[353637733,1739975450932,-2879.76341,0.000176,2]
[353637734,1739975450942,-2879.76341,0.000176,2]
[353637735,1739975450951,-14630.41500645,0.000176,2]
[353637736,1739975450962,-151.0,0.000176,2]
[353637737,1739975450973,-1556962.67375466,0.000176,5]
[353637738,1739975450987,-607.19868087,0.000176,5]
[353637739,1739975450998,-73740.00008202,0.000176,5]
[353637740,1739976135517,1000.0,0.00019,120]
[353637741,1739976137269,1000.0,0.00019,120]
[353637742,1739976216334,169.001014,9.041e-05,2]
[353637744,1739976442316,-367.02956978,0.0001262,2]
[353637745,1739976442349,-52.41439553,0.0001262,2]
[353637746,1739976442373,-300.0,0.00012747,2]
[353637747,1739976442395,-1129.74470669,0.00012748,2]
[353637748,1739976452132,-1004.67196911,0.00012748,2]
[353637751,1739976557212,-300.0,0.00012747,2]
[353637752,1739976557234,-22765.5833242,0.00012748,2]
[353637753,1739976557255,-3784.94628774,0.000128,2]
[353637865,1739976635769,-2079.50033166,0.000128,2]
[353637867,1739976635778,-300.0,0.0001369,2]
[353637868,1739976635788,-500.0,0.00013697,2]
[353637870,1739976635798,-500.0,0.00013697,2]
[353637872,1739976635807,-500.0,0.00013697,2]
[353637874,1739976635816,-500.0,0.00013697,2]
[353637876,1739976635827,-500.0,0.00013697,2]
[353637878,1739976635837,-500.0,0.00013697,2]
[353637880,1739976635847,-500.0,0.00013697,2]
[353637882,1739976635857,-500.0,0.00013697,2]
[353637884,1739976635867,-500.0,0.00013697,2]
[353637885,1739976635876,-500.0,0.00013697,2]
[353637886,1739976635887,-177.01839919,0.00013697,2]
[353637887,1739976635896,-204.6020843,0.00013697,2]
[353637888,1739976635906,-500.0,0.00013697,2]
[353637889,1739976635916,-500.0,0.00013697,2]
[353637890,1739976635926,-500.0,0.00013697,2]
[353637891,1739976635936,-500.0,0.00013697,2]
[353637892,1739976635945,-500.0,0.00013697,2]
[353637893,1739976635955,-238.5,0.00013697,2]
[353637894,1739976635966,-500.0,0.00013697,2]
[353637895,1739976635976,-500.0,0.00013697,2]
[353637896,1739976635986,-500.0,0.00013697,2]
[353637897,1739976635995,-500.0,0.00013697,2]
[353637898,1739976636009,-266.95896782,0.00013698,2]
[353637899,1739976636019,-503.80431141,0.00013698,2]
[353637900,1739976636028,-500.0,0.00013698,2]
[353637901,1739976636038,-500.0,0.00013698,2]
[353637902,1739976636047,-170.77505547,0.00013698,2]
[353637903,1739976636059,-329.22494453,0.00013698,2]
[353637904,1739976636069,-500.0,0.00013698,2]
[353637906,1739976636079,-92.94081513,0.00013698,2]
[353637908,1739976636091,-407.05918487,0.00013698,2]
[353637911,1739976636100,-500.0,0.00013698,2]